lending/lending_fUSD_20250122
["ID","MTS","AMOUNT","RATE_DAILY","PERIOD"]
[349973169,1737543050439,-500.0,0.00020259,2]
[349973170,1737543050448,-204.6711177,0.00020259,2]
[349973171,1737543050457,-500.0,0.00020259,2]
[349973172,1737543050467,-500.0,0.00020259,2]
[349973173,1737543050514,-500.0,0.00020259,2]
[349973174,1737543050525,-500.0,0.00020259,2]
[349973175,1737543050533,-611.0,0.00020259,2]
[349973176,1737543050542,-633.18,0.00020259,2]
[349973177,1737543050551,-636.57,0.00020259,2]
[349973178,1737543050561,-622.41,0.00020259,2]
[349973179,1737543050570,-696.905612,0.00020259,2]
[349973180,1737543050579,-615.48,0.00020259,2]
[349973181,1737543050587,-593.21,0.00020259,2]
[349973182,1737543050596,-500.0,0.00020259,2]
[349973183,1737543050605,-500.0,0.00020259,2]
[349973184,1737543050614,-500.0,0.00020259,2]
[349973185,1737543050623,-500.0,0.00020259,2]
[349973186,1737543050632,-500.0,0.00020259,2]
[349973187,1737543050641,-734.89,0.00020259,2]
[349973188,1737543050650,-500.0,0.00020259,2]
[349973189,1737543050660,-430.736439,0.00020259,2]
[349973190,1737543050669,-543.19,0.00020259,2]
[349973191,1737543050678,-514.06,0.00020259,2]
[349973192,1737543050687,-532.40805573,0.00020259,2]
[349973193,1737543050695,-500.0,0.00020259,2]
[349973194,1737543050704,-500.0,0.00020259,2]
[349973195,1737543050713,-500.0,0.00020259,2]
[349973196,1737543050722,-651.4,0.00020259,2]
[349973197,1737543050731,-565.61,0.00020259,2]
[349973198,1737543050740,-607.08,0.00020259,2]
[349973199,1737543050748,-544.76,0.00020259,2]
[349973200,1737543050757,-500.0,0.00020259,2]
[349973201,1737543050766,-500.0,0.00020259,2]
[349973202,1737543050775,-557.09,0.00020259,2]
[349973203,1737543050784,-500.0,0.00020259,2]
[349973204,1737543050793,-547.46,0.00020259,2]
[349973205,1737543050802,-500.0,0.00020259,2]
[349973206,1737543050811,-500.0,0.00020259,2]
[349973207,1737543050820,-500.0,0.00020259,2]
[349973208,1737543050829,-522.15,0.00020259,2]
[349973209,1737543050837,-674.29,0.00020259,2]
[349973210,1737543050846,-286.82448119,0.00020259,2]
[349973211,1737543050855,-500.0,0.00020259,2]
[349973212,1737543050865,-500.0,0.00020259,2]
[349973213,1737543050879,-500.0,0.00020259,2]
[349973214,1737543050892,-500.0,0.00020259,2]
[349973215,1737543050904,-500.0,0.00020259,2]
[349973216,1737543050913,-500.0,0.00020259,2]
[349973217,1737543050922,-2005.85,0.00020259,2]
[349973218,1737543050931,-500.0,0.00020259,2]
[349973219,1737543050940,-728.29,0.00020259,2]
[349973220,1737543050949,-500.0,0.00020259,2]
[349973221,1737543050957,-500.0,0.00020259,2]
[349973222,1737543050966,-654.91,0.00020259,2]
[349973223,1737543050975,-500.0,0.00020259,2]
[349973224,1737543050984,-1335.55,0.00020259,2]
[349973225,1737543050995,-500.0,0.00020259,2]
[349973226,1737543051004,-500.0,0.00020259,2]
[349973227,1737543051013,-563.18,0.00020259,2]
[349973228,1737543051022,-579.89,0.00020259,2]
[349973229,1737543051031,-605.71,0.00020259,2]
[349973230,1737543051040,-804.54,0.00020259,2]
[349973231,1737543051049,-500.0,0.00020259,2]
[349973232,1737543051058,-500.0,0.00020259,2]
[349973233,1737543051067,-1153.22,0.00020259,2]
[349973234,1737543051076,-1619.59,0.00020259,2]
[349973235,1737543051085,-500.0,0.00020259,2]
[349973236,1737543051094,-1176.05,0.00020259,2]
[349973237,1737543051104,-1526.1,0.00020259,2]
[349973238,1737543051113,-1317.3,0.00020259,2]
[349973239,1737543051122,-638.3,0.00020259,2]
[349973240,1737543051132,-534.41,0.00020259,2]
[349973241,1737543051141,-836.8,0.00020259,2]
[349973242,1737543051150,-500.0,0.00020259,2]
[349973243,1737543051160,-641.75,0.00020259,2]
[349973244,1737543051170,-1279.84,0.00020259,2]
[349973245,1737543051179,-500.0,0.00020259,2]
[349973246,1737543051193,-834.28,0.00020259,2]
[349973247,1737543051202,-1061.45,0.00020259,2]
[349973248,1737543051211,-1354.03,0.00020259,2]
[349973249,1737543051221,-889.89,0.00020259,2]
[349973250,1737543051230,-887.9,0.00020259,2]
[349973251,1737543051239,-500.0,0.00020259,2]
[349973252,1737543051249,-500.0,0.00020259,2]
[349973253,1737543051259,-500.0,0.00020259,2]
[349973254,1737543051269,-1044.04,0.00020259,2]
[349973255,1737543051279,-534.09,0.00020259,2]
[349973256,1737543051289,-1385.07,0.00020259,2]
[349973257,1737543051298,-846.02,0.00020259,2]
[349973258,1737543051308,-2977.88,0.00020259,2]
[349973259,1737543051317,-579.54,0.00020259,2]
[349973260,1737543051326,-500.0,0.00020259,2]
[349973261,1737543051335,-1751.24,0.00020259,2]
[349973262,1737543051345,-500.0,0.00020259,2]
[349973263,1737543051354,-501.98,0.00020259,2]
[349973264,1737543051363,-500.0,0.00020259,2]
[349973265,1737543051372,-1171.54,0.00020259,2]
[349973266,1737543051381,-1334.69,0.00020259,2]
[349973267,1737543051390,-500.0,0.00020259,2]
[349973268,1737543051400,-500.0,0.00020259,2]
[349973269,1737543051410,-2029.85,0.00020259,2]
[349973270,1737543051419,-609.82,0.00020259,2]
[349973271,1737543051429,-500.0,0.00020259,2]
[349973272,1737543051438,-1777.1,0.00020259,2]
[349973273,1737543051447,-500.0,0.00020259,2]
[349973274,1737543051457,-2741.48,0.00020259,2]
[349973275,1737543051466,-545.63,0.00020259,2]
[349973276,1737543051478,-1922.1,0.00020259,2]
[349973277,1737543051498,-500.0,0.00020259,2]
[349973278,1737543051517,-810.61,0.00020259,2]
[349973279,1737543051527,-621.12,0.00020259,2]
[349973280,1737543051538,-2848.38,0.00020259,2]
[349973281,1737543051547,-1616.11,0.00020259,2]
[349973282,1737543051557,-1138.85,0.00020259,2]
[349973283,1737543051566,-542.87,0.00020259,2]
[349973284,1737543051575,-825.59,0.00020259,2]
[349973285,1737543051584,-500.0,0.00020259,2]
[349973286,1737543051593,-500.0,0.00020259,2]
[349973287,1737543051602,-947.01,0.00020259,2]
[349973288,1737543051611,-500.0,0.00020259,2]
[349973289,1737543051621,-500.0,0.00020259,2]
[349973290,1737543051630,-925.69,0.00020259,2]
[349973291,1737543051639,-510.69,0.00020259,2]
[349973292,1737543051648,-722.49,0.00020259,2]
[349973293,1737543051657,-839.26,0.00020259,2]
[349973294,1737543051666,-894.97,0.00020259,2]
[349973295,1737543051675,-500.0,0.00020259,2]
[349973296,1737543051684,-1861.2,0.00020259,2]
[349973297,1737543051693,-500.0,0.00020259,2]
[349973298,1737543051702,-1109.58,0.00020259,2]
[349973299,1737543051711,-1675.06,0.00020259,2]
[349973300,1737543051720,-964.77,0.00020259,2]
[349973301,1737543051729,-779.24,0.00020259,2]
[349973302,1737543051737,-2983.84,0.00020259,2]
[349973303,1737543051746,-844.16,0.00020259,2]
[349973304,1737543051755,-692.0,0.00020259,2]
[349973305,1737543051764,-1114.63,0.00020259,2]
[349973306,1737543051773,-500.0,0.00020259,2]
[349973307,1737543051782,-500.0,0.00020259,2]
[349973308,1737543051791,-500.0,0.00020259,2]
[349973309,1737543051799,-1604.95,0.00020259,2]
[349973310,1737543051808,-806.08,0.00020259,2]
[349973311,1737543051817,-500.0,0.00020259,2]
[349973312,1737543051827,-239.19,0.00020259,2]
[349973313,1737543051835,-500.0,0.00020259,2]
[349973314,1737543051845,-804.41,0.00020259,2]
[349973315,1737543051854,-1546.76,0.00020259,2]
[349973316,1737543051863,-1624.89,0.00020259,2]
[349973317,1737543051872,-500.0,0.00020259,2]
[349973318,1737543051882,-500.0,0.00020259,2]
[349973319,1737543051891,-1136.79,0.00020259,2]
[349973320,1737543051900,-500.0,0.00020259,2]
[349973321,1737543051909,-850.68,0.00020259,2]
[349973322,1737543051918,-500.0,0.00020259,2]
[349973323,1737543051927,-500.0,0.00020259,2]
[349973324,1737543051936,-596.84,0.00020259,2]
[349973325,1737543051945,-500.0,0.00020259,2]
[349973326,1737543051954,-158.721706,0.00020259,2]
[349973327,1737543051963,-730.42,0.00020259,2]
[349973328,1737543051971,-617.9,0.00020259,2]
[349973329,1737543051980,-665.82,0.00020259,2]
[349973330,1737543051989,-162.9,0.00020259,2]
[349973331,1737543051998,-580.94,0.00020259,2]
[349973332,1737543052007,-500.0,0.00020259,2]
[349973333,1737543052016,-554.49,0.00020259,2]
[349973334,1737543052026,-1112.75,0.00020259,2]
[349973335,1737543052036,-500.0,0.00020259,2]
[349973336,1737543052045,-500.0,0.00020259,2]
[349973337,1737543052054,-1973.54,0.00020259,2]
[349973338,1737543052064,-500.0,0.00020259,2]
[349973339,1737543052073,-518.0,0.00020259,2]
[349973340,1737543052082,-500.0,0.00020259,2]
[349973341,1737543052091,-500.0,0.00020259,2]
[349973342,1737543052100,-1300.76,0.00020259,2]
[349973343,1737543052109,-500.0,0.00020259,2]
[349973344,1737543052118,-500.0,0.00020259,2]
[349973345,1737543052127,-693.19,0.00020259,2]
[349973346,1737543052137,-500.0,0.00020259,2]
[349973347,1737543052146,-500.0,0.00020259,2]
[349973348,1737543052156,-500.0,0.0002026,2]
[349973349,1737543052165,-518.75,0.0002026,2]
[349973350,1737543052174,-500.0,0.0002026,2]
[349973351,1737543052183,-500.0,0.0002026,2]
[349973352,1737543052195,-500.0,0.0002026,2]
[349973353,1737543052204,-500.0,0.0002026,2]
[349973354,1737543052213,-500.0,0.0002026,2]
[349973355,1737543052223,-500.0,0.0002026,2]
[349973356,1737543052233,-500.0,0.0002026,2]
[349973357,1737543052242,-500.0,0.0002026,2]
[349973358,1737543052251,-500.0,0.0002026,2]
[349973359,1737543052260,-500.0,0.0002026,2]
[349973360,1737543052271,-500.0,0.0002026,2]
[349973361,1737543052281,-500.11282453,0.0002026,2]
[349973362,1737543052290,-500.0,0.0002026,2]
[349973363,1737543052299,-298.05,0.00020356,2]
[349973364,1737543052309,-634.57515482,0.00020376,2]
[349973365,1737543052319,-1268.54,0.00020434,2]
[349973366,1737543052328,-1340.61,0.00020434,2]
[349973367,1737543052337,-1505.03,0.00020434,2]
[349973368,1737543052347,-3584.15,0.00020434,2]
[349973369,1737543052357,-5673.23,0.00020434,2]
[349973370,1737543052366,-811.24,0.00020434,2]
[349973371,1737543052375,-679.08,0.00020434,2]
[349973372,1737543052385,-1980.65,0.00020434,2]
[349973373,1737543052394,-500.0,0.00020434,2]
[349973374,1737543052403,-841.31,0.00020434,2]
[349973375,1737543052413,-1284.8,0.00020434,2]
[349973376,1737543052422,-500.0,0.00020434,2]
[349973377,1737543052432,-1000.0,0.00020434,2]
[349973378,1737543052441,-579.99,0.00020434,2]
[349973379,1737543052450,-500.0,0.00020434,2]
[349973380,1737543052459,-1799.97,0.00020434,2]
[349973381,1737543052468,-1458.23,0.00020434,2]
[349973382,1737543052479,-719.12874926,0.00020476,2]
[349973383,1737543052488,-2079.0,0.000205,2]
[349973384,1737543052497,-689.28735627,0.00020521,2]
[349973385,1737543052506,-500.0,0.00020533,2]
[349973386,1737543052516,-500.0,0.00020533,2]
[349973387,1737543052526,-643.15,0.00020533,2]
[349973388,1737543052535,-505.93,0.00020533,2]
[349973389,1737543052544,-500.0,0.00020533,2]
[349973390,1737543052553,-500.0,0.00020533,2]
[349973391,1737543052563,-500.0,0.00020533,2]
[349973392,1737543052571,-500.0,0.00020533,2]
[349973393,1737543052580,-500.0,0.00020533,2]
[349973394,1737543052590,-500.0,0.00020533,2]
[349973395,1737543052599,-338.1641986,0.00020533,2]
[349973396,1737543052608,-545.92,0.00020533,2]
[349973397,1737543052616,-500.0,0.00020533,2]
[349973398,1737543052626,-500.0,0.00020533,2]
[349973399,1737543052636,-500.0,0.00020533,2]
[349973400,1737543052645,-500.0,0.00020533,2]
[349973401,1737543052654,-500.0,0.00020533,2]
[349973402,1737543052663,-500.0,0.00020533,2]
[349973403,1737543052671,-500.66,0.00020533,2]
[349973404,1737543052680,-500.0,0.00020533,2]
[349973405,1737543052689,-500.0,0.00020533,2]
[349973406,1737543052698,-500.0,0.00020533,2]
[349973407,1737543052707,-500.0,0.00020533,2]
[349973408,1737543052716,-500.0,0.00020533,2]
[349973409,1737543052725,-500.0,0.00020533,2]
[349973410,1737543052734,-500.0,0.00020533,2]
[349973411,1737543052744,-611.0,0.00020533,2]
[349973412,1737543052753,-633.18,0.00020533,2]
[349973413,1737543052762,-636.57,0.00020533,2]
[349973414,1737543052771,-622.41,0.00020533,2]
[349973415,1737543052781,-696.905612,0.00020533,2]
[349973416,1737543052790,-322.59088377,0.00020533,2]
[349973417,1737543053281,-500.0,0.00019437,2]
[349973418,1737543053290,-223.59849753,0.00019437,2]
[349973419,1737543053305,-276.40150247,0.00019437,2]
[349973420,1737543053315,-500.0,0.00019437,2]
[349973421,1737543053327,-500.0,0.00019711,2]
[349973422,1737543053336,-500.0,0.00019711,2]
[349973423,1737543053346,-500.0,0.00019711,2]
[349973424,1737543053355,-500.0,0.00019711,2]
[349973425,1737543053366,-500.0,0.00019985,2]
[349973426,1737543053375,-500.0,0.00019985,2]
[349973427,1737543053386,-500.0,0.00019985,2]
[349973428,1737543053395,-500.0,0.00020259,2]
[349973429,1737543053405,-500.0,0.00020259,2]
[349973430,1737543053414,-500.0,0.00020259,2]
[349973431,1737543053424,-292.88911623,0.00020533,2]
[349973432,1737543053434,-593.21,0.00020533,2]
[349973433,1737543053444,-500.0,0.00020533,2]
[349973434,1737543053454,-500.0,0.00020533,2]
[349973435,1737543053463,-500.0,0.00020533,2]
[349973436,1737543053472,-500.0,0.00020533,2]
[349973437,1737543053482,-500.0,0.00020533,2]
[349973438,1737543053491,-734.89,0.00020533,2]
[349973439,1737543053501,-500.0,0.00020533,2]
[349973440,1737543053510,-430.736439,0.00020533,2]
[349973441,1737543053520,-543.19,0.00020533,2]
[349973442,1737543053529,-514.06,0.00020533,2]
[349973443,1737543053538,-500.0,0.00020533,2]
[349973444,1737543053547,-500.0,0.00020533,2]
[349973445,1737543053556,-500.0,0.00020533,2]
[349973446,1737543053566,-651.4,0.00020533,2]
[349973447,1737543053575,-565.61,0.00020533,2]
[349973448,1737543053584,-607.08,0.00020533,2]
[349973449,1737543053594,-544.76,0.00020533,2]
[349973450,1737543053603,-500.0,0.00020533,2]
[349973451,1737543053613,-500.0,0.00020533,2]
[349973452,1737543053622,-557.09,0.00020533,2]
[349973453,1737543053632,-500.0,0.00020533,2]
[349973454,1737543053641,-159.391299,0.00020533,2]
[349973455,1737543053651,-547.46,0.00020533,2]
[349973456,1737543053660,-500.0,0.00020533,2]
[349973457,1737543053669,-500.0,0.00020533,2]
[349973458,1737543053679,-500.0,0.00020533,2]
[349973459,1737543053688,-522.15,0.00020533,2]
[349973460,1737543053698,-674.29,0.00020533,2]
[349973461,1737543053707,-500.0,0.00020533,2]
[349973462,1737543053717,-500.0,0.00020533,2]
[349973463,1737543053726,-500.0,0.00020533,2]
[349973464,1737543053735,-500.0,0.00020533,2]
[349973465,1737543053745,-500.0,0.00020533,2]
[349973466,1737543053755,-2005.85,0.00020533,2]
[349973467,1737543053764,-500.0,0.00020533,2]
[349973468,1737543053773,-24.5416433,0.00020533,2]
[349973469,1737543053788,-703.7483567,0.00020533,2]
[349973470,1737543053798,-58.56550594,0.00020533,2]
[349973471,1737543053814,-500.0,0.00019437,2]
[349973472,1737543053824,-441.43449406,0.00020533,2]
[349973473,1737543053833,-500.0,0.00020533,2]
[349973474,1737543053843,-654.91,0.00020533,2]
[349973475,1737543053853,-500.0,0.00020533,2]
[349973476,1737543053863,-1335.55,0.00020533,2]
[349973477,1737543053872,-500.0,0.00020533,2]
[349973478,1737543053881,-269.85,0.00020533,2]
[349973479,1737543053891,-563.18,0.00020533,2]
[349973480,1737543053901,-579.89,0.00020533,2]
[349973481,1737543053911,-605.71,0.00020533,2]
[349973482,1737543053921,-804.54,0.00020533,2]
[349973483,1737543053931,-635.99,0.00020533,2]
[349973484,1737543053940,-500.0,0.00020533,2]
[349973485,1737543053950,-1619.59,0.00020533,2]
[349973486,1737543053959,-500.0,0.00020533,2]
[349973487,1737543053969,-1176.05,0.00020533,2]
[349973488,1737543053978,-1526.1,0.00020533,2]
[349973489,1737543053987,-1317.3,0.00020533,2]
[349973490,1737543053997,-638.3,0.00020533,2]
[349973491,1737543054008,-534.41,0.00020533,2]
[349973492,1737543054019,-836.8,0.00020533,2]
[349973493,1737543054028,-500.0,0.00020533,2]
[349973494,1737543054038,-641.75,0.00020533,2]
[349973495,1737543054047,-1279.84,0.00020533,2]
[349973496,1737543054058,-500.0,0.00020533,2]
[349973497,1737543054067,-834.28,0.00020533,2]
[349973498,1737543054078,-1061.45,0.00020533,2]
[349973499,1737543054088,-1354.03,0.00020533,2]
[349973500,1737543054097,-889.89,0.00020533,2]
[349973501,1737543054107,-887.9,0.00020533,2]
[349973502,1737543054117,-500.0,0.00020533,2]
[349973503,1737543054127,-500.0,0.00020533,2]
[349973504,1737543054137,-181.82,0.00020533,2]
[349973505,1737543054147,-1044.04,0.00020533,2]
[349973506,1737543054319,-534.09,0.00020533,2]
[349973507,1737543054329,-1385.07,0.00020533,2]
[349973508,1737543054339,-846.02,0.00020533,2]
[349973509,1737543054348,-2977.88,0.00020533,2]
[349973510,1737543054357,-579.54,0.00020533,2]
[349973511,1737543054366,-500.0,0.00020533,2]
[349973512,1737543054375,-1751.24,0.00020533,2]
[349973513,1737543054385,-500.0,0.00020533,2]
[349973514,1737543054394,-159.391298,0.00020533,2]
[349973515,1737543054403,-501.98,0.00020533,2]
[349973516,1737543054413,-500.0,0.00020533,2]
[349973517,1737543054422,-1171.54,0.00020533,2]
[349973518,1737543054431,-1334.69,0.00020533,2]
[349973519,1737543054440,-605.01,0.00020533,2]
[349973520,1737543054449,-500.0,0.00020533,2]
[349973521,1737543054459,-2029.85,0.00020533,2]
[349973522,1737543054469,-609.82,0.00020533,2]
[349973523,1737543054478,-500.0,0.00020533,2]
[349973524,1737543054488,-1777.1,0.00020533,2]
[349973525,1737543054497,-500.0,0.00020533,2]
[349973526,1737543054506,-2741.48,0.00020533,2]
[349973527,1737543054516,-545.63,0.00020533,2]
[349973528,1737543054525,-1922.1,0.00020533,2]
[349973529,1737543054534,-500.0,0.00020533,2]
[349973530,1737543054544,-810.61,0.00020533,2]
[349973531,1737543054553,-621.12,0.00020533,2]
[349973532,1737543054562,-2848.38,0.00020533,2]
[349973533,1737543054571,-1616.11,0.00020533,2]
[349973534,1737543054579,-1138.85,0.00020533,2]
[349973535,1737543054588,-542.87,0.00020533,2]
[349973536,1737543054598,-825.59,0.00020533,2]
[349973537,1737543054607,-500.0,0.00020533,2]
[349973538,1737543054617,-500.0,0.00020533,2]
[349973539,1737543054626,-947.01,0.00020533,2]
[349973540,1737543054635,-500.0,0.00020533,2]
[349973541,1737543054645,-500.0,0.00020533,2]
[349973542,1737543054654,-925.69,0.00020533,2]
[349973543,1737543054662,-510.69,0.00020533,2]
[349973544,1737543054672,-722.49,0.00020533,2]
[349973545,1737543054681,-839.26,0.00020533,2]
[349973546,1737543054691,-894.97,0.00020533,2]
[349973547,1737543054700,-500.0,0.00020533,2]
[349973548,1737543054709,-1861.2,0.00020533,2]
[349973549,1737543054718,-500.0,0.00020533,2]
[349973550,1737543054728,-1109.58,0.00020533,2]
[349973551,1737543054737,-1675.06,0.00020533,2]
[349973552,1737543054746,-964.77,0.00020533,2]
[349973553,1737543054755,-779.24,0.00020533,2]
[349973554,1737543054764,-2983.84,0.00020533,2]
[349973555,1737543054773,-844.16,0.00020533,2]
[349973556,1737543054782,-692.0,0.00020533,2]
[349973557,1737543054793,-1114.63,0.00020533,2]
[349973558,1737543054802,-500.0,0.00020533,2]
[349973559,1737543054811,-500.0,0.00020533,2]
[349973560,1737543054821,-500.0,0.00020533,2]
[349973561,1737543054830,-1604.95,0.00020533,2]
[349973562,1737543054840,-806.08,0.00020533,2]
[349973563,1737543054849,-500.0,0.00020533,2]
[349973564,1737543054858,-500.0,0.00020533,2]
[349973565,1737543054867,-804.41,0.00020533,2]
[349973566,1737543054876,-1546.76,0.00020533,2]
[349973567,1737543054885,-1624.89,0.00020533,2]
[349973568,1737543054894,-500.0,0.00020533,2]
[349973569,1737543054904,-500.0,0.00020533,2]
[349973570,1737543054913,-1136.79,0.00020533,2]
[349973571,1737543054922,-500.0,0.00020533,2]
[349973572,1737543054931,-850.68,0.00020533,2]
[349973573,1737543054940,-500.0,0.00020533,2]
[349973574,1737543054950,-500.0,0.00020533,2]
[349973575,1737543054962,-596.84,0.00020533,2]
[349973576,1737543054971,-500.0,0.00020533,2]
[349973577,1737543054981,-730.42,0.00020533,2]
[349973578,1737543054990,-617.9,0.00020533,2]
[349973579,1737543055000,-665.82,0.00020533,2]
[349973580,1737543055009,-580.94,0.00020533,2]
[349973581,1737543055019,-500.0,0.00020533,2]
[349973582,1737543055028,-554.49,0.00020533,2]
[349973583,1737543055037,-1112.75,0.00020533,2]
[349973584,1737543055046,-500.0,0.00020533,2]
[349973585,1737543055056,-500.0,0.00020533,2]
[349973586,1737543055066,-1973.54,0.00020533,2]
[349973587,1737543055075,-500.0,0.00020533,2]
[349973588,1737543055084,-518.0,0.00020533,2]
[349973589,1737543055093,-500.0,0.00020533,2]
[349973590,1737543055102,-500.0,0.00020533,2]
[349973591,1737543055112,-1300.76,0.00020533,2]
[349973592,1737543055121,-500.0,0.00020533,2]
[349973593,1737543055131,-693.19,0.00020533,2]
[349973594,1737543055140,-500.0,0.00020533,2]
[349973595,1737543055149,-500.0,0.00020533,2]
[349973596,1737543055159,-506.71,0.00020533,2]
[349973597,1737543055168,-500.0,0.00020534,2]
[349973598,1737543055178,-518.75,0.00020534,2]
[349973599,1737543055189,-500.0,0.00020534,2]
[349973600,1737543055199,-500.0,0.00020534,2]
[349973601,1737543055209,-500.0,0.00020534,2]
[349973602,1737543055218,-500.0,0.00020534,2]
[349973603,1737543055227,-500.0,0.00020534,2]
[349973604,1737543055238,-500.0,0.00020534,2]
[349973605,1737543055248,-500.0,0.00020534,2]
[349973606,1737543055258,-500.0,0.00020534,2]
[349973607,1737543055268,-500.0,0.00020534,2]
[349973608,1737543055278,-500.0,0.00020534,2]
[349973609,1737543055287,-1021.0,0.00020548,4]
[349973610,1737543055296,-261.03,0.00020631,2]
[349973611,1737543055306,-180.47128719,0.00020698,2]
[349973612,1737543055315,-186.61332376,0.00020707,2]
[349973613,1737543055324,-184.2019563,0.00020707,2]
[349973614,1737543055333,-634.57515482,0.00020707,2]
[349973615,1737543055343,-1268.54,0.00020708,2]
[349973616,1737543055352,-1340.61,0.00020708,2]
[349973617,1737543055361,-1505.03,0.00020708,2]
[349973618,1737543055371,-3584.15,0.00020708,2]
[349973619,1737543055379,-5673.23,0.00020708,2]
[349973620,1737543055389,-811.24,0.00020708,2]
[349973621,1737543055398,-679.08,0.00020708,2]
[349973622,1737543055406,-1980.65,0.00020708,2]
[349973623,1737543055415,-500.0,0.00020708,2]
[349973624,1737543055425,-841.31,0.00020708,2]
[349973625,1737543055434,-500.0,0.00020708,2]
[349973626,1737543055443,-1284.8,0.00020708,2]
[349973627,1737543055452,-500.0,0.00020708,2]
[349973628,1737543055462,-1000.0,0.00020708,2]
[349973629,1737543055471,-579.99,0.00020708,2]
[349973630,1737543055480,-500.0,0.00020708,2]
[349973631,1737543055489,-1799.97,0.00020708,2]
[349973632,1737543055499,-1458.23,0.00020708,2]
[349973633,1737543055508,-297.53,0.00020712,2]
[349973634,1737543055517,-556.0,0.0002074,2]
[349973635,1737543055527,-500.0,0.0002074,2]
[349973636,1737543055536,-719.12874926,0.00020761,2]
[349973637,1737543055545,-731.83202777,0.00020783,2]
[349973638,1737543055554,-200.0,0.00020785,2]
[349973639,1737543055563,-552.55080464,0.00020785,2]
[349973640,1737543055572,-703.52422435,0.00020786,2]
[349973641,1737543055581,-3726.5941033,0.00020786,2]
[349973642,1737543055590,-731.83202777,0.00020788,2]
[349973643,1737543055599,-200.0,0.0002079,2]
[349973644,1737543055608,-703.52422434,0.0002079,2]
[349973645,1737543055617,-703.52422434,0.00020791,2]
[349973646,1737543055626,-29292.04219857,0.00020791,2]
[349973647,1737543055635,-200.0,0.00020791,2]
[349973648,1737543055644,-858.80220808,0.00020793,2]
[349973649,1737543055653,-731.35170008,0.00020797,2]
[349973650,1737543055662,-51321.28138864,0.00020798,2]
[349973651,1737543055670,-3726.5941033,0.00020799,2]
[349973652,1737543055679,-471.29838805,0.00020799,2]
[349973653,1737543055688,-51321.28138864,0.000208,2]
[349973654,1737543055697,-200.0,0.00020801,2]
[349973655,1737543055706,-3726.5941033,0.00020802,2]
[349973656,1737543055715,-703.52422435,0.00020802,2]
[349973657,1737543055725,-200.0,0.00020803,2]
[349973658,1737543055735,-200.0,0.00020805,2]
[349973659,1737543055744,-500.0,0.00020807,2]
[349973660,1737543055753,-500.0,0.00020807,2]
[349973661,1737543055763,-643.15,0.00020807,2]
[349973662,1737543055773,-505.93,0.00020807,2]
[349973663,1737543055783,-500.0,0.00020807,2]
[349973664,1737543055792,-500.0,0.00020807,2]
[349973665,1737543055801,-500.0,0.00020807,2]
[349973666,1737543055810,-500.0,0.00020807,2]
[349973667,1737543055819,-619.12535874,0.00020807,2]
[349973668,1737543055827,-500.0,0.00020807,2]